bitfinex/quotes_SOLUSD_20250414
["timestamp","ask_amount","ask_price","bid_price","bid_amount"]
[1744674126026,27.85489094,129.55,129.51,10.7]
[1744674126819,7.7186,129.56,129.52,20.13529094]
[1744674128433,20.13529094,129.56,129.51,18.4212]
[1744674128730,20.13529094,129.54,129.49,20.13529094]
[1744674128922,20.13529094,129.55,129.5,20.13529094]
[1744674129105,0.14216157,129.56,129.51,12.58188265]
[1744674129313,12.72404422,129.56,129.51,12.58188265]
[1744674130131,12.72404422,129.56,129.5,12.58188265]
[1744674130132,20.30088265,129.55,129.5,12.58188265]
[1744674130634,7.719,129.55,129.51,12.58188265]
[1744674132034,7.719,129.55,129.5,20.30368265]
[1744674133832,7.719,129.55,129.5,7.7218]
[1744674134329,20.29908265,129.58,129.53,12.58188265]
[1744674134922,12.58188265,129.57,129.52,12.58188265]
[1744674135127,12.58188265,129.56,129.51,12.58188265]
[1744674135327,12.58188265,129.55,129.5,12.58188265]
[1744674135525,12.58188265,129.55,129.5,20.30368265]
[1744674135726,45.944272,129.58,129.5,20.30368265]
[1744674135727,12.58188265,129.56,129.5,7.7218]
[1744674135917,12.58188265,129.56,129.51,12.58188265]
[1744674136123,12.58188265,129.55,129.5,12.58188265]
[1744674136324,7.7196,129.54,129.5,12.58188265]
[1744674138142,12.58188265,129.55,129.5,12.58188265]
[1744674138444,12.58188265,129.56,129.5,20.30358265]
[1744674138655,12.58188265,129.55,129.49,10.82]
[1744674139034,12.58188265,129.53,129.48,12.58188265]
[1744674139751,7.7175,129.58,129.52,18.85278265]
[1744674139930,20.29938265,129.58,129.53,12.58188265]
[1744674140131,20.29938265,129.58,129.52,18.85278265]
[1744674140757,7.7175,129.58,129.54,12.58188265]
[1744674140933,7.7167,129.59,129.54,12.58188265]
[1744674141241,12.58188265,129.59,129.52,24.8115]
[1744674141546,12.58188265,129.59,129.53,12.58188265]
[1744674141844,12.58188265,129.59,129.54,12.58188265]
[1744674142330,7.7172,129.58,129.54,12.58188265]
[1744674142943,20.29908265,129.58,129.52,29.67278265]
[1744674143149,12.58188265,129.57,129.52,29.67278265]
[1744674143350,12.58188265,129.57,129.52,37.39348265]
[1744674143719,12.58188265,129.56,129.52,10.82]
[1744674144342,7.719,129.55,129.52,10.82]
[1744674147648,20.30088265,129.55,129.52,10.82]
[1744674147858,7.719,129.55,129.51,12.58188265]
[1744674148156,12.58188265,129.56,129.51,12.58188265]
[1744674149056,12.58188265,129.57,129.52,12.58188265]
[1744674149350,12.58188265,129.58,129.52,12.58188265]
[1744674149927,12.58188265,129.56,129.51,20.30278265]
[1744674150464,12.58188265,129.55,129.5,12.58188265]
[1744674151133,7.7196,129.54,129.5,12.58188265]
[1744674151341,12.58188265,129.53,129.49,10.82]
[1744674152327,12.58188265,129.52,129.49,10.82]
[1744674152531,12.58188265,129.5,129.44,15.3104]
[1744674152727,12.58188265,129.48,129.44,15.3104]
[1744674153448,20.30508265,129.48,129.44,15.3104]
[1744674153845,20.30508265,129.48,129.44,27.89228265]
[1744674154044,20.30508265,129.48,129.43,23.43188265]
[1744674154244,12.58188265,129.47,129.43,10.85]
[1744674154553,20.30508265,129.48,129.43,23.43188265]
[1744674155146,20.30508265,129.48,129.43,10.85]
[1744674155337,12.58188265,129.47,129.43,10.85]
[1744674155538,20.30508265,129.48,129.43,31.15788265]
[1744674155742,20.30478265,129.49,129.44,12.58188265]
[1744674155925,12.58188265,129.48,129.43,31.15788265]
[1744674156535,1.6663,129.47,129.43,7.756]
[1744674156739,12.58188265,129.47,129.43,7.7561]
[1744674157142,12.58188265,129.47,129.43,20.33798265]
[1744674157550,12.58188265,129.48,129.43,20.33798265]
[1744674158155,20.30558265,129.47,129.43,0.03]
[1744674158731,12.58188265,129.49,129.44,12.58188265]
[1744674158950,12.58188265,129.48,129.44,12.58188265]
[1744674159156,12.58188265,129.48,129.43,12.61188265]
[1744674159855,20.30528265,129.48,129.43,20.33768265]
[1744674160158,20.30528265,129.48,129.43,7.7558]
[1744674160472,20.30528265,129.48,129.43,20.33768265]
[1744674163356,12.58188265,129.49,129.44,12.58188265]
[1744674163556,12.58188265,129.5,129.46,12.58188265]
[1744674163748,12.58188265,129.5,129.45,12.58188265]
[1744674164258,12.58188265,129.49,129.45,12.58188265]
[1744674164451,12.58188265,129.49,129.44,12.58188265]
[1744674165766,9.3879,129.51,129.44,20.30698265]
[1744674165966,12.58188265,129.5,129.45,12.58188265]
[1744674167064,20.30388265,129.5,129.45,12.58188265]
[1744674167261,80.8,129.52,129.48,12.58188265]
[1744674167471,12.58188265,129.54,129.5,12.58188265]
[1744674167850,0.063,129.55,129.51,12.58188265]
[1744674168062,12.64488265,129.55,129.5,12.58188265]
[1744674168567,0.063,129.55,129.51,12.58188265]
[1744674169047,0.063,129.55,129.51,20.30318265]
[1744674169247,12.64488265,129.55,129.5,20.30358265]
[1744674170165,20.36418265,129.55,129.5,12.58188265]
[1744674170549,12.64488265,129.55,129.5,12.58188265]
[1744674170870,20.36388265,129.55,129.5,12.58188265]
[1744674171867,20.36388265,129.55,129.5,20.30348265]
[1744674172065,12.58188265,129.54,129.49,12.58188265]
[1744674172265,12.58188265,129.53,129.49,12.58188265]
[1744674172771,12.58188265,129.53,129.48,20.30508265]
[1744674172976,12.58188265,129.52,129.48,20.30508265]
[1744674173181,12.58188265,129.53,129.49,12.58188265]
[1744674173360,12.58188265,129.54,129.49,12.58188265]
[1744674173559,12.64488265,129.55,129.5,12.58188265]
[1744674174159,12.58188265,129.54,129.49,12.58188265]
[1744674174975,20.30198265,129.54,129.49,20.30418265]
[1744674175561,20.30198265,129.54,129.49,12.58188265]
[1744674175759,12.58188265,129.53,129.49,12.58188265]
[1744674176179,20.30198265,129.54,129.49,12.58188265]
[1744674176477,20.30198265,129.54,129.49,20.30438265]
[1744674179182,20.30198265,129.54,129.49,12.58188265]
[1744674180179,20.30198265,129.54,129.49,20.30398265]
[1744674180785,0.063,129.55,129.52,12.58188265]
[1744674181283,0.063,129.55,129.51,12.58188265]
[1744674181490,12.58188265,129.53,129.49,12.58188265]
[1744674181690,12.58188265,129.53,129.48,20.30478265]
[1744674182066,12.58188265,129.54,129.49,12.58188265]
[1744674182267,20.30198265,129.54,129.5,12.58188265]
[1744674182468,7.7201,129.54,129.5,12.58188265]
[1744674182676,20.36418265,129.55,129.5,12.58188265]
[1744674182873,7.7823,129.55,129.51,12.58188265]
[1744674183482,0.063,129.55,129.52,12.58188265]
[1744674183790,0.063,129.55,129.54,2.58188265]
[1744674185093,12.58188265,129.54,129.49,20.30418265]
[1744674185592,12.58188265,129.54,129.49,7.7223]
[1744674185790,12.58188265,129.54,129.49,20.30418265]
[1744674186390,20.30188265,129.54,129.49,20.30418265]
[1744674186594,7.72,129.54,129.5,12.58188265]
[1744674187297,7.7823,129.55,129.51,12.58188265]
[1744674187677,0.063,129.55,129.51,12.58188265]
[1744674187876,20.36398265,129.55,129.5,12.58188265]
[1744674188071,7.7821,129.55,129.51,12.58188265]
[1744674188282,0.063,129.55,129.53,12.58188265]
[1744674188682,0.063,129.55,129.53,20.30198265]
[1744674189696,0.063,129.55,129.53,12.58188265]
[1744674190786,0.063,129.55,129.52,12.58188265]
[1744674193980,0.063,129.55,129.52,20.30268265]
[1744674197900,0.063,129.55,129.52,12.58188265]
[1744674198291,0.063,129.55,129.51,12.58188265]
[1744674198489,12.58188265,129.54,129.49,20.30388265]
[1744674198876,12.64488265,129.55,129.51,12.58188265]
[1744674199105,0.063,129.55,129.51,12.58188265]
[1744674200102,20.36388265,129.55,129.51,12.58188265]
[1744674200404,12.58188265,129.54,129.49,7.7223]
[1744674200602,12.58188265,129.54,129.49,20.30418265]
[1744674200803,12.58188265,129.54,129.47,30.2289]
[1744674200804,12.72404422,129.53,129.48,12.58188265]
[1744674200985,12.58188265,129.52,129.47,23.50188265]
[1744674201803,14.20718265,129.52,129.47,23.50188265]
[1744674202510,7.7214,129.51,129.47,23.50188265]
[1744674203082,20.30328265,129.51,129.46,20.30608265]
[1744674203399,20.30328265,129.51,129.46,7.7242]
[1744674203704,20.30328265,129.51,129.46,20.30608265]
[1744674204686,20.30328265,129.51,129.46,12.58188265]
[1744674206404,39.60678265,129.51,129.46,12.58188265]
[1744674206601,12.58188265,129.5,129.44,7.7255]
[1744674206801,12.58188265,129.5,129.45,12.58188265]
[1744674207706,7.7226,129.49,129.45,12.58188265]
[1744674208006,7.7226,129.49,129.46,12.58188265]
[1744674208605,7.7226,129.49,129.45,20.30658265]
[1744674209014,7.7226,129.49,129.45,12.58188265]
[1744674209190,7.7226,129.49,129.43,10.81]
[1744674209399,8.05958709,129.48,129.43,18.86958709]
[1744674209601,15.78218709,129.49,129.44,8.05958709]
[1744674209908,8.05958709,129.48,129.44,8.05958709]
[1744674211187,7.7237,129.47,129.44,8.05958709]
[1744674211589,7.7234,129.48,129.45,8.05958709]
[1744674211908,7.7228,129.49,129.45,8.05958709]
[1744674213323,80.8,129.51,129.47,8.05958709]
[1744674213502,80.8,129.51,129.49,8.05958709]
[1744674213691,1.6253,129.52,129.45,27.0371]
[1744674213898,9.68488709,129.52,129.47,8.05958709]
[1744674214919,17.40578709,129.52,129.47,15.78318709]
[1744674216924,8.05958709,129.51,129.44,7.7255]
[1744674217118,8.05958709,129.5,129.45,8.05958709]
[1744674217419,8.05958709,129.5,129.46,8.05958709]
[1744674218218,7.7226,129.49,129.46,8.05958709]
[1744674218812,7.7226,129.49,129.44,8.05958709]
[1744674218813,15.78218709,129.49,129.44,8.05958709]
[1744674219001,8.05958709,129.48,129.43,18.86958709]
[1744674220415,7.7237,129.47,129.43,18.86958709]
[1744674220614,1.655,129.46,129.43,10.81]
[1744674220804,9.71458709,129.46,129.43,10.81]
[1744674221010,1.655,129.46,129.43,10.81]
[1744674221601,1.655,129.46,129.43,18.86958709]
[1744674222420,9.3796,129.46,129.43,18.86958709]
[1744674223208,9.3796,129.46,129.43,10.81]
[1744674225631,9.3796,129.46,129.43,18.86958709]
[1744674226729,7.7239,129.47,129.43,18.86958709]
[1744674227014,1.6209,129.49,129.45,8.05958709]
[1744674227220,1.6209,129.52,129.47,8.05958709]
[1744674227397,6.5126,129.54,129.5,8.05958709]
[1744674227596,9.4032,129.55,129.52,8.05958709]
[1744674227795,0.063,129.55,129.53,8.05958709]
[1744674229228,0.063,129.55,129.53,12.57902601]
[1744674230200,0.063,129.55,129.54,12.57902601]
[1744674230911,0.063,129.55,129.53,12.57902601]
[1744674231109,0.063,129.55,129.54,12.57902601]
[1744674231926,0.063,129.55,129.54,25.15805202]
[1744674232518,0.063,129.55,129.54,12.57902601]
[1744674233430,0.063,129.55,129.54,20.29862601]
[1744674234330,0.063,129.55,129.54,32.87765202]
[1744674234542,0.063,129.55,129.54,51.95378559]
[1744674235037,0.063,129.55,129.53,18.4]
[1744674235337,0.063,129.55,129.54,12.57902601]
[1744674238937,0.063,129.55,129.53,23.25902601]
[1744674239138,0.063,129.55,129.53,10.68]
[1744674241440,0.063,129.55,129.53,18.4]
[1744674241612,0.063,129.55,129.54,12.57902601]
[1744674241908,0.063,129.55,129.53,23.25902601]
[1744674242322,0.063,129.55,129.54,12.57902601]
[1744674242724,0.063,129.55,129.53,10.68]
[1744674242927,0.063,129.55,129.53,23.25902601]
[1744674243633,0.063,129.55,129.53,10.68]
[1744674244536,12.64202601,129.55,129.53,10.68]
[1744674244836,0.063,129.55,129.51,12.57902601]
[1744674245140,0.063,129.55,129.5,7.7219]
[1744674245332,12.64202601,129.55,129.51,12.57902601]
[1744674245552,12.64202601,129.55,129.49,18.4023]
[1744674245713,12.64202601,129.55,129.51,12.57902601]
[1744674246538,7.782,129.55,129.51,12.57902601]
[1744674247027,0.063,129.55,129.53,12.57902601]
[1744674248812,0.063,129.55,129.52,12.57902601]
[1744674249442,0.063,129.55,129.53,12.57902601]
[1744674251134,0.063,129.55,129.52,20.29952601]
[1744674251517,0.063,129.55,129.53,12.57902601]
[1744674252133,0.063,129.55,129.52,12.57902601]
[1744674253143,0.063,129.55,129.52,20.29982601]
[1744674254549,0.063,129.55,129.53,12.57902601]
[1744674255137,0.063,129.55,129.53,8.0500232]
[1744674255841,0.063,129.55,129.52,15.7707232]
[1744674257915,26.0,129.54,129.51,10.68]
[1744674258130,35.6168232,129.54,129.51,10.68]
[1744674258337,8.0500232,129.53,129.48,8.0500232]
[1744674259135,12.58783719,129.53,129.48,12.58783719]
[1744674259531,7.7208,129.52,129.48,12.58783719]
[1744674260444,12.58783719,129.51,129.47,10.71]
[1744674260828,12.58783719,129.51,129.47,23.29783719]
[1744674261236,20.30863719,129.52,129.47,23.29783719]
[1744674263248,12.58783719,129.51,129.47,10.71]
[1744674263845,7.722,129.5,129.47,10.71]
[1744674264141,7.7216,129.51,129.47,10.71]
[1744674264337,7.7216,129.51,129.47,23.29783719]
[1744674265950,39.61293719,129.51,129.47,10.71]
[1744674266244,12.58783719,129.5,129.47,0.03]
[1744674267951,7.7226,129.49,129.47,0.03]
[1744674270143,20.30983719,129.5,129.47,0.03]
[1744674272364,20.30943719,129.51,129.47,0.03]
[1744674272557,7.7216,129.51,129.47,12.61783719]
[1744674273334,20.30943719,129.51,129.47,0.03]
[1744674274160,12.58783719,129.49,129.47,0.03]
[1744674274373,12.58783719,129.5,129.47,0.03]
[1744674275357,7.7226,129.49,129.47,0.03]
[1744674277156,20.31043719,129.49,129.47,0.03]
[1744674277465,7.7226,129.49,129.47,0.03]
[1744674278539,12.58783719,129.48,129.47,0.03]
[1744674278746,31.80613233,129.48,129.47,0.03]
[1744674278947,44.39396952,129.48,129.47,0.0001]
[1744674279159,59.55243554,129.48,129.47,0.0001]
[1744674279541,67.27563554,129.48,129.47,0.0001]
[1744674281647,71.13268967,129.48,129.47,0.0001]
[1744674282863,0.14216157,129.47,129.46,0.0001]
[1744674283059,8.20898965,129.47,129.46,0.0001]
[1744674285069,15.93268965,129.47,129.46,0.0001]
[1744674285267,15.93268965,129.47,129.41,0.03]
[1744674285268,0.14216157,129.42,129.41,0.03]
[1744674285468,0.14216157,129.4,129.39,0.03]
[1744674285638,44.79181043,129.39,129.38,2.7681999]
[1744674285843,45.07613357,129.39,129.38,2.7681999]
[1744674286363,34.06682808,129.39,129.38,2.7681999]
[1744674286865,26.0,129.4,129.38,2.7681999]
[1744674287051,8.06682808,129.43,129.38,10.83502798]
[1744674287249,1.68576157,129.44,129.38,10.83502798]
[1744674287250,15.79352808,129.42,129.38,2.7681999]
[1744674287641,8.06682808,129.41,129.38,2.7681999]
[1744674288961,8.06682808,129.4,129.38,2.7681999]
[1744674289148,15.79512808,129.4,129.38,2.7681999]
[1744674289956,8.06682808,129.39,129.38,2.7681999]
[1744674291672,15.79532808,129.39,129.38,2.7681999]
[1744674292773,35.01362322,129.39,129.38,2.7681999]
[1744674292980,36.59332322,129.39,129.38,2.7681999]
[1744674293285,41.14745081,129.39,129.38,9.99e-05]
[1744674295269,19.07613357,129.38,129.37,9.99e-05]
[1744674295454,31.69708924,129.38,129.37,9.99e-05]
[1744674295649,39.42618924,129.38,129.37,9.99e-05]
[1744674296055,20.49221724,129.38,129.37,9.99e-05]
[1744674296263,7.7291,129.38,129.37,9.99e-05]
[1744674296463,20.35005567,129.38,129.37,9.99e-05]
[1744674296655,20.49221724,129.38,129.37,9.99e-05]
[1744674297551,19.07613357,129.37,129.36,9.99e-05]
[1744674297751,53.73020648,129.37,129.36,9.99e-05]
[1744674298153,22.03311724,129.37,129.36,9.99e-05]
[1744674299482,32.69311724,129.37,129.36,9.99e-05]
[1744674300270,64.39020648,129.37,129.36,9.99e-05]
[1744674300666,32.69311724,129.37,129.36,9.99e-05]
[1744674300852,21.89095567,129.37,129.36,9.99e-05]
[1744674301058,20.35065567,129.37,129.36,9.99e-05]
[1744674301659,20.49281724,129.37,129.36,9.99e-05]
[1744674302065,45.07613357,129.35,129.34,9.99e-05]
[1744674302352,0.42648471,129.33,129.32,0.03]
[1744674302559,31.83925081,129.33,129.32,0.03]
[1744674302773,12.76311724,129.33,129.32,0.03]
[1744674303361,20.49521724,129.33,129.32,0.03]
[1744674305259,50.23135081,129.33,129.32,0.0001]
[1744674306180,26.0,129.3,129.26,0.03]
[1744674306390,12.62095567,129.27,129.26,0.03]
[1744674306760,38.62095567,129.29,129.26,0.03]
[1744674306959,26.0,129.29,129.26,0.03]
[1744674307160,38.62095567,129.29,129.26,0.03]
[1744674307360,46.35585567,129.29,129.26,0.03]
[1744674307682,12.62095567,129.31,129.26,12.65095567]
[1744674308060,7.7336,129.31,129.27,12.62095567]
[1744674308258,101.15385567,129.32,129.27,12.62095567]
[1744674308573,88.5329,129.32,129.27,12.62095567]
[1744674308776,80.8,129.32,129.3,12.62095567]
[1744674308974,20.35185567,129.35,129.3,12.62095567]
[1744674309284,20.35185567,129.35,129.27,31.68895567]
[1744674309285,12.62095567,129.31,129.27,31.68895567]
[1744674309481,80.8,129.34,129.29,12.62095567]
[1744674309669,19.46696157,129.37,129.31,12.62095567]
[1744674309862,12.62095567,129.36,129.31,12.62095567]
[1744674310182,20.35065567,129.37,129.32,12.62095567]
[1744674311581,20.35065567,129.37,129.32,20.35345567]
[1744674311960,99.5094,129.38,129.34,12.62095567]
[1744674312169,88.5294,129.38,129.34,12.62095567]
[1744674312368,80.8,129.38,129.34,12.62095567]
[1744674312574,80.8,129.38,129.35,12.62095567]
[1744674312769,88.5293,129.38,129.34,12.62095567]
[1744674313071,12.62095567,129.35,129.28,51.0934]
[1744674313278,12.62095567,129.35,129.3,12.62095567]
[1744674313476,7.7315,129.34,129.3,12.62095567]
[1744674314585,7.7315,129.34,129.28,25.0934]
[1744674314771,7.7315,129.34,129.29,12.62095567]
[1744674314772,12.62095567,129.33,129.29,12.62095567]
[1744674314974,20.35245567,129.34,129.29,12.62095567]
[1744674315164,12.62095567,129.33,129.29,12.62095567]
[1744674315565,7.7327,129.32,129.28,29.97925567]
[1744674315781,7.7327,129.32,129.28,17.3583]
[1744674315782,20.35365567,129.32,129.28,17.3583]
[1744674315981,12.62095567,129.31,129.28,17.3583]
[1744674316876,20.35365567,129.32,129.28,17.3583]
[1744674317381,7.7327,129.32,129.29,12.62095567]
[1744674317586,27.0587,129.35,129.29,12.62095567]
[1744674317886,12.62095567,129.32,129.28,29.97925567]
[1744674318101,12.62095567,129.31,129.28,10.98]
[1744674318285,12.62095567,129.3,129.26,0.03]
[1744674318587,12.62095567,129.29,129.26,0.03]
[1744674319570,7.7351,129.28,129.26,0.03]
[1744674320170,7.7339,129.3,129.26,12.65095567]
[1744674321088,7.7339,129.3,129.26,0.03]
[1744674321089,20.35485567,129.3,129.26,0.03]
[1744674321467,12.62095567,129.29,129.26,0.03]
[1744674321667,7.7351,129.28,129.26,0.03]
[1744674323396,20.35605567,129.28,129.26,0.03]
[1744674325187,12.62095567,129.27,129.26,0.03]
[1744674327170,26.670272,129.26,129.25,0.03]
[1744674327376,39.57555081,129.26,129.25,0.03]
[1744674327885,39.57555081,129.26,129.24,0.0001]
[1744674328094,12.76311724,129.25,129.24,0.0001]
[1744674328288,125.26020648,129.25,129.24,0.0001]
[1744674328486,93.56311724,129.25,129.24,0.0001]
[1744674329388,101.15785567,129.25,129.24,0.0001]
[1744674329592,80.8,129.25,129.24,0.0001]
[1744674329800,20.35575567,129.29,129.24,12.62105567]
[1744674330005,20.35575567,129.29,129.25,12.62095567]
[1744674330294,12.62095567,129.26,129.24,0.0001]
[1744674330598,12.62095567,129.25,129.24,0.0001]
[1744674331175,12.62095567,129.26,129.24,0.0001]
[1744674331488,80.8,129.28,129.24,0.0001]
[1744674331489,88.5354,129.28,129.24,0.0001]
[1744674331689,80.8,129.28,129.24,12.62105567]
[1744674331897,80.8,129.28,129.25,12.62095567]
[1744674332076,80.8,129.28,129.26,12.62095567]
[1744674332271,7.7332,129.32,129.27,12.62095567]
[1744674332592,7.7332,129.32,129.28,12.62095567]
[1744674332796,101.15335567,129.33,129.28,12.62095567]
[1744674333293,101.15335567,129.33,129.28,20.35555567]
[1744674333477,101.15335567,129.33,129.28,26.72995567]
[1744674333687,88.5324,129.33,129.29,12.62095567]
[1744674333996,101.15335567,129.33,129.28,26.72995567]
[1744674334374,88.5324,129.33,129.28,26.72995567]
[1744674334575,20.35265567,129.34,129.3,12.62095567]
[1744674334771,7.7317,129.34,129.3,12.62095567]
[1744674335303,12.62095567,129.33,129.28,6.3744]
[1744674335470,12.62095567,129.33,129.28,18.99535567]
[1744674335898,20.35265567,129.34,129.29,12.62095567]
[1744674336492,12.62095567,129.34,129.29,12.62095567]
[1744674336801,12.62095567,129.34,129.29,20.35535567]
[1744674337019,12.62095567,129.35,129.3,12.62095567]
[1744674337603,12.62095567,129.33,129.28,6.3744]
[1744674337916,12.62095567,129.32,129.28,6.3744]
[1744674338209,12.62095567,129.33,129.28,18.99535567]
[1744674338413,12.62095567,129.32,129.28,6.3744]
[1744674339319,12.62095567,129.33,129.28,18.99535567]
[1744674339616,38.62095567,129.33,129.28,18.99535567]
[1744674339914,12.62095567,129.32,129.28,17.4344]
[1744674340713,20.35425567,129.31,129.28,17.4344]
[1744674340889,38.62095567,129.33,129.28,30.05535567]
[1744674341393,26.0,129.33,129.29,12.62095567]
[1744674341720,26.0,129.33,129.28,17.4344]
[1744674341721,38.62095567,129.33,129.28,30.05535567]
[1744674342016,12.62095567,129.34,129.29,20.35535567]
[1744674342218,7.7309,129.35,129.3,12.62095567]
[1744674342430,20.35185567,129.35,129.31,12.62095567]
[1744674342589,20.35185567,129.35,129.3,12.62095567]
[1744674343012,7.7309,129.35,129.3,12.62095567]
[1744674343219,20.35185567,129.35,129.3,12.62095567]
[1744674343407,20.35185567,129.35,129.3,20.35465567]
[1744674345018,0.063,129.38,129.34,12.62095567]
[1744674345222,12.68395567,129.38,129.34,12.62095567]
[1744674345603,12.68395567,129.38,129.33,23.68095567]
[1744674345994,20.41345567,129.38,129.33,23.68095567]
[1744674346194,20.41345567,129.38,129.2,0.03]
[1744674346195,21.6398,129.25,129.2,0.03]
[1744674346394,1.0,129.21,129.2,0.03]
[1744674347321,1.0,129.21,129.2,11.09]
[1744674347503,13.62095567,129.21,129.2,11.09]
[1744674347901,1.0,129.21,129.2,11.09]
[1744674348212,1.0,129.21,129.2,0.03]
[1744674350126,1.0,129.21,129.2,11.09]
[1744674355237,28.96943559,129.22,129.2,11.09]
[1744674355530,21.23063559,129.21,129.2,11.09]
[1744674355911,1.0,129.21,129.2,11.09]
[1744674357339,1.0,129.25,129.2,39.06053559]
[1744674357512,1.0,129.25,129.24,20.23063559]
[1744674357821,1.0,129.25,129.21,26.47773559]
[1744674358026,21.23063559,129.25,129.22,11.06]
[1744674358335,21.23063559,129.23,129.22,11.06]
[1744674358717,1.0,129.23,129.22,11.06]
[1744674359412,1.0,129.23,129.21,11.06]
[1744674361135,1.0,129.23,129.21,18.7993]
[1744674361434,21.23063559,129.24,129.21,18.7993]
[1744674361829,1.0,129.23,129.21,18.7993]
[1744674362137,1.0,129.25,129.21,39.02993559]
[1744674362437,1.0,129.23,129.21,18.7993]
[1744674362650,21.23063559,129.23,129.21,11.06]
[1744674363842,1.0,129.21,129.2,0.03]
[1744674364143,1.0,129.21,129.17,0.03]
[1744674364144,0.14216157,129.2,129.17,0.03]
[1744674364435,21.23063559,129.18,129.17,0.03]
[1744674364942,1.0,129.18,129.17,0.03]
[1744674365123,21.23063559,129.19,129.17,0.03]
[1744674365317,21.23063559,129.2,129.17,0.03]
[1744674365520,1.0,129.21,129.18,31.29063559]
[1744674365725,1.0,129.2,129.18,31.29063559]
[1744674366019,1.0,129.2,129.18,11.06]
[1744674366220,20.23063559,129.22,129.18,11.06]
[1744674366221,1.0,129.21,129.18,11.06]
[1744674366423,1.0,129.2,129.18,11.06]
[1744674366633,21.23063559,129.22,129.18,18.8005]
[1744674366836,1.0,129.21,129.18,18.8005]
[1744674367235,21.23063559,129.2,129.18,11.06]
[1744674367442,21.23063559,129.19,129.17,0.03]
[1744674367662,21.23063559,129.18,129.17,0.03]
[1744674367937,1.0,129.19,129.17,0.03]
[1744674368444,21.23063559,129.21,129.17,7.7715]
[1744674368644,1.0,129.24,129.2,7.7399]
[1744674368949,21.23063559,129.24,129.2,19.0799]
[1744674369130,1.0,129.22,129.2,19.0799]
[1744674369444,21.23063559,129.23,129.2,19.0799]
[1744674369642,21.23063559,129.25,129.21,20.23063559]
[1744674369943,1.0,129.25,129.21,20.23063559]
[1744674370131,1.0,129.26,129.22,20.23063559]
[1744674370316,1.0,129.25,129.22,20.23063559]
[1744674370518,1.0,129.25,129.21,26.37253559]
[1744674370945,1.0,129.24,129.21,26.37253559]
[1744674371131,21.23063559,129.25,129.21,34.11173559]
[1744674371644,1.0,129.24,129.21,34.11173559]
[1744674371940,1.0,129.25,129.21,34.11173559]
[1744674372431,20.23063559,129.24,129.2,19.0797]
[1744674372829,21.23063559,129.23,129.2,11.34]
[1744674373032,28.96903559,129.23,129.2,11.34]
[1744674373840,20.23063559,129.22,129.2,11.34]
[1744674375244,28.96963559,129.22,129.2,11.34]
[1744674375433,21.23063559,129.21,129.17,0.03]
[1744674375629,1.0,129.19,129.17,0.03]
[1744674375945,21.23063559,129.19,129.17,0.03]
[1744674376246,1.0,129.19,129.17,0.03]
[1744674377348,1.0,129.2,129.17,7.7716]
[1744674377547,28.97003559,129.21,129.17,7.7716]
[1744674377750,1.0,129.2,129.17,7.7716]
[1744674378528,1.0,129.2,129.17,28.00223559]
[1744674378736,1.0,129.19,129.17,0.03]
[1744674379635,21.23063559,129.19,129.17,0.03]
[1744674380438,1.0,129.19,129.17,0.03]
[1744674380643,21.23063559,129.19,129.17,0.03]
[1744674381248,1.0,129.19,129.17,0.03]
[1744674383153,21.23063559,129.19,129.17,0.03]
[1744674383851,1.0,129.19,129.17,0.03]
[1744674385554,21.23063559,129.2,129.17,0.03]
[1744674385852,21.23063559,129.21,129.17,0.03]
[1744674386042,1.0,129.21,129.17,20.26063559]
[1744674387150,1.0,129.22,129.18,31.57063559]
[1744674387561,1.0,129.21,129.18,31.57063559]
[1744674387857,1.0,129.22,129.18,39.31123559]
[1744674388039,21.23063559,129.24,129.19,20.23063559]
[1744674388865,1.0,129.23,129.19,20.23063559]
[1744674390463,1.0,129.23,129.2,7.7399]
[1744674392269,21.23063559,129.24,129.2,7.7399]
[1744674392565,1.0,129.23,129.2,7.7399]
[1744674392757,21.23063559,129.24,129.2,7.7399]
[1744674393567,1.0,129.25,129.2,27.97053559]
[1744674393777,1.0,129.25,129.22,20.23063559]
[1744674394068,1.0,129.26,129.22,20.23063559]
[1744674394260,1.0,129.25,129.21,20.23063559]